[Event "Early-Titled-Tuesday-Blitz-June-18-2024"]
[Site "Chess.com"]
[Date "2024.06.18"]
[Round "1"]
[White "secrethawk1"]
[Black "BlackBoarder"]
[Result "0-1"]
[WhiteElo "2421"]
[BlackElo "2751"]
[TimeControl "180+1"]
[EndTime "8:08:17 PDT"]
[Termination "BlackBoarder won on time"]

1. e4 {[%clk 0:03:00.1]} 1... e6 {[%clk 0:02:59.9]} 2. d4 {[%clk 0:02:59.8]}
2... d5 {[%clk 0:03:00.2]} 3. Nc3 {[%clk 0:03:00.5]} 3... Bb4 {[%clk 0:03:00.4]}
4. exd5 {[%clk 0:02:59.7]} 4... exd5 {[%clk 0:03:00]} 5. Bd3 {[%clk 0:02:59.8]}
5... Ne7 {[%clk 0:02:48.6]} 6. Ne2 {[%clk 0:02:59.4]} 6... Bf5 {[%clk
0:02:47.5]} 7. O-O {[%clk 0:02:58.1]} 7... O-O {[%clk 0:02:45.9]} 8. Bg5 {[%clk
0:02:56.5]} 8... f6 {[%clk 0:02:45.8]} 9. Bf4 {[%clk 0:02:54.3]} 9... c6 {[%clk
0:02:41.1]} 10. Bxf5 {[%clk 0:02:52.9]} 10... Nxf5 {[%clk 0:02:40.7]} 11. Qd3
{[%clk 0:02:53.6]} 11... Nh4 {[%clk 0:02:34.9]} 12. Bg3 {[%clk 0:02:50.9]} 12...
Ng6 {[%clk 0:02:34.5]} 13. Nf4 {[%clk 0:02:50.4]} 13... Nxf4 {[%clk 0:02:32]}
14. Bxf4 {[%clk 0:02:51.3]} 14... Nd7 {[%clk 0:02:32.3]} 15. a3 {[%clk
0:02:50.2]} 15... Bxc3 {[%clk 0:02:30.6]} 16. Qxc3 {[%clk 0:02:48.3]} 16... Re8
{[%clk 0:02:29.6]} 17. Rae1 {[%clk 0:02:46.7]} 17... Nf8 {[%clk 0:02:27.1]} 18.
Bg3 {[%clk 0:02:41.1]} 18... Ne6 {[%clk 0:02:24.4]} 19. b3 {[%clk 0:02:36.4]}
19... Qb6 {[%clk 0:02:21.9]} 20. Rd1 {[%clk 0:02:34]} 20... Ng5 {[%clk
0:02:01.3]} 21. f3 {[%clk 0:02:33.6]} 21... Re2 {[%clk 0:01:59.4]} 22. Rfe1
{[%clk 0:02:31.3]} 22... Rae8 {[%clk 0:01:57.7]} 23. Rxe2 {[%clk 0:02:29.2]}
23... Rxe2 {[%clk 0:01:57.4]} 24. Re1 {[%clk 0:02:15.1]} 24... Rxe1+ {[%clk
0:01:33.5]} 25. Bxe1 {[%clk 0:02:05]} 25... Ne6 {[%clk 0:01:32.9]} 26. Bf2
{[%clk 0:02:03.8]} 26... Qa6 {[%clk 0:01:32.2]} 27. Qe3 {[%clk 0:02:03.1]} 27...
Kf7 {[%clk 0:01:26.9]} 28. a4 {[%clk 0:02:02.7]} 28... Qa5 {[%clk 0:01:23.2]}
29. Be1 {[%clk 0:02:00.2]} 29... Qb6 {[%clk 0:01:22.5]} 30. Bc3 {[%clk 0:01:52]}
30... Qc7 {[%clk 0:01:17.2]} 31. g3 {[%clk 0:01:47.7]} 31... b6 {[%clk
0:01:13.1]} 32. Qd3 {[%clk 0:01:45.3]} 32... g6 {[%clk 0:01:10.4]} 33. Kf2
{[%clk 0:01:35.4]} 33... h5 {[%clk 0:00:59.8]} 34. h4 {[%clk 0:01:31.6]} 34...
Ng7 {[%clk 0:00:56.4]} 35. Bd2 {[%clk 0:01:27.9]} 35... Nf5 {[%clk 0:00:56]} 36.
c4 {[%clk 0:01:27.6]} 36... Qxg3+ {[%clk 0:00:55.4]} 37. Ke2 {[%clk 0:01:25.7]}
37... Qxh4 {[%clk 0:00:47.7]} 38. cxd5 {[%clk 0:01:19.1]} 38... Nxd4+ {[%clk
0:00:44.1]} 39. Ke3 {[%clk 0:01:06.4]} 39... Nf5+ {[%clk 0:00:38.8]} 40. Ke2
{[%clk 0:01:05.8]} 40... Qh2+ {[%clk 0:00:26.4]} 41. Kd1 {[%clk 0:01:04.3]}
41... Qd6 {[%clk 0:00:25.7]} 42. a5 {[%clk 0:00:45]} 42... Qxd5 {[%clk
0:00:24.7]} 43. Qa6 {[%clk 0:00:40.1]} 43... Qxf3+ {[%clk 0:00:20.1]} 44. Kc1
{[%clk 0:00:23.9]} 44... Qxb3 {[%clk 0:00:07.3]} 45. Qxa7+ {[%clk 0:00:22.5]}
45... Ke6 {[%clk 0:00:07.2]} 46. Qb8 {[%clk 0:00:04.9]} 46... Qc4+ {[%clk
0:00:02.7]} 47. Kd1 {[%clk 0:00:03.7]} 47... Qg4+ {[%clk 0:00:02.6]} 48. Kc1
{[%clk 0:00:01.9]} 48... Qg1+ {[%clk 0:00:02.3]} 49. Kc2 {[%clk 0:00:02.3]}
49... Qc5+ {[%clk 0:00:01.9]} 50. Kd1 {[%clk 0:00:02]} 50... bxa5 {[%clk
0:00:02.4]} 51. Qg8+ {[%clk 0:00:02.1]} 51... Kd7 {[%clk 0:00:02.8]} 52. Qxg6
{[%clk 0:00:01.4]} 52... Qd5 {[%clk 0:00:02.5]} 0-1

[Event "Early-Titled-Tuesday-Blitz-June-18-2024"]
[Site "Chess.com"]
[Date "2024.06.18"]
[Round "1"]
[White "myburger"]
[Black "rezamahdavi2008"]
[Result "0-1"]
[WhiteElo "2529"]
[BlackElo "2968"]
[TimeControl "180+1"]
[EndTime "8:08:18 PDT"]
[Termination "rezamahdavi2008 won by checkmate"]

1. d4 {[%clk 0:03:00.9]} 1... d5 {[%clk 0:03:00]} 2. Nc3 {[%clk 0:03:01.4]} 2...
Nf6 {[%clk 0:03:00.1]} 3. Bf4 {[%clk 0:03:01.9]} 3... e6 {[%clk 0:03:00.5]} 4.
Nb5 {[%clk 0:03:02.2]} 4... Na6 {[%clk 0:03:00.7]} 5. e3 {[%clk 0:03:02.7]} 5...
Be7 {[%clk 0:02:52.8]} 6. Nf3 {[%clk 0:02:59.2]} 6... O-O {[%clk 0:02:53.5]} 7.
Bd3 {[%clk 0:02:50.9]} 7... c6 {[%clk 0:02:51.6]} 8. Nc3 {[%clk 0:02:49.5]} 8...
Nb4 {[%clk 0:02:52.2]} 9. Be2 {[%clk 0:02:49.8]} 9... c5 {[%clk 0:02:42.1]} 10.
a3 {[%clk 0:02:48.6]} 10... Nc6 {[%clk 0:02:42]} 11. O-O {[%clk 0:02:47.8]}
11... a6 {[%clk 0:02:36.5]} 12. Ne5 {[%clk 0:02:42]} 12... Nxe5 {[%clk
0:02:23.5]} 13. Bxe5 {[%clk 0:02:31.9]} 13... Nd7 {[%clk 0:02:23.3]} 14. Bg3
{[%clk 0:02:31.1]} 14... b5 {[%clk 0:02:21.3]} 15. dxc5 {[%clk 0:02:25.9]} 15...
Nxc5 {[%clk 0:02:20.8]} 16. b4 {[%clk 0:02:24.5]} 16... Nd7 {[%clk 0:02:13]} 17.
Bd3 {[%clk 0:02:22.5]} 17... Bf6 {[%clk 0:02:11.6]} 18. Qd2 {[%clk 0:02:12.3]}
18... Bb7 {[%clk 0:02:11.6]} 19. Rad1 {[%clk 0:02:10.4]} 19... Rc8 {[%clk
0:02:11.9]} 20. Ne2 {[%clk 0:02:10.1]} 20... g6 {[%clk 0:02:05.8]} 21. Nc1
{[%clk 0:02:01.2]} 21... Nb6 {[%clk 0:02:00.8]} 22. Nb3 {[%clk 0:01:57.8]} 22...
Na4 {[%clk 0:02:00.8]} 23. Na5 {[%clk 0:01:54.7]} 23... Ba8 {[%clk 0:01:58.3]}
24. Rc1 {[%clk 0:01:47.7]} 24... Bb2 {[%clk 0:01:44]} 25. Rb1 {[%clk 0:01:29.6]}
25... Bxa3 {[%clk 0:01:43.7]} 26. Ra1 {[%clk 0:01:15.6]} 26... Bb2 {[%clk
0:01:43.7]} 27. Rxa4 {[%clk 0:01:15.7]} 27... bxa4 {[%clk 0:01:43.9]} 28. Bxa6
{[%clk 0:01:16.2]} 28... Bc3 {[%clk 0:01:33.3]} 29. Qd3 {[%clk 0:01:09.8]} 29...
Bxb4 {[%clk 0:01:31.2]} 30. Bxc8 {[%clk 0:01:10.5]} 30... Qxc8 {[%clk
0:01:32.1]} 31. Qb5 {[%clk 0:01:08.8]} 31... Qc3 {[%clk 0:01:31]} 32. Be5 {[%clk
0:01:03.9]} 32... Qd2 {[%clk 0:01:27.5]} 33. c3 {[%clk 0:00:52.5]} 33... Bxc3
{[%clk 0:01:17.8]} 34. Bxc3 {[%clk 0:00:53.4]} 34... Qxc3 {[%clk 0:01:18.7]} 35.
Qxa4 {[%clk 0:00:54.3]} 35... Rb8 {[%clk 0:01:16.9]} 36. h3 {[%clk 0:00:49]}
36... Kg7 {[%clk 0:01:16.4]} 37. Qa1 {[%clk 0:00:48]} 37... Qxa1 {[%clk
0:01:07.6]} 38. Rxa1 {[%clk 0:00:48.9]} 38... Kf6 {[%clk 0:01:07.6]} 39. g3
{[%clk 0:00:47]} 39... h5 {[%clk 0:01:05.7]} 40. h4 {[%clk 0:00:45.1]} 40... Rb4
{[%clk 0:01:05.7]} 41. Nb3 {[%clk 0:00:42.8]} 41... Bb7 {[%clk 0:01:03.5]} 42.
Nc5 {[%clk 0:00:41.7]} 42... Bc6 {[%clk 0:01:03.9]} 43. Nd3 {[%clk 0:00:40.6]}
43... Rc4 {[%clk 0:01:01.8]} 44. Ra7 {[%clk 0:00:39]} 44... Rc3 {[%clk
0:00:57.5]} 45. Nf4 {[%clk 0:00:35.8]} 45... d4 {[%clk 0:00:55.4]} 46. Ng2
{[%clk 0:00:29.9]} 46... Rc1+ {[%clk 0:00:52]} 47. Kh2 {[%clk 0:00:29.5]} 47...
Rc2 {[%clk 0:00:52.6]} 48. Rc7 {[%clk 0:00:21.9]} 48... dxe3 {[%clk 0:00:52.8]}
49. Nxe3 {[%clk 0:00:20.7]} 49... Rxf2+ {[%clk 0:00:53.5]} 50. Kg1 {[%clk
0:00:18.8]} 50... Rf3 {[%clk 0:00:54.2]} 51. Nc4 {[%clk 0:00:15.3]} 51... Bd5
{[%clk 0:00:40.8]} 52. Nd6 {[%clk 0:00:14.2]} 52... e5 {[%clk 0:00:41.5]} 53.
Ne8+ {[%clk 0:00:14.5]} 53... Kf5 {[%clk 0:00:40]} 54. Ng7+ {[%clk 0:00:13.6]}
54... Kg4 {[%clk 0:00:40.3]} 55. Rc5 {[%clk 0:00:12.8]} 55... Rxg3+ {[%clk
0:00:39.8]} 56. Kf2 {[%clk 0:00:12.7]} 56... Rd3 {[%clk 0:00:38.7]} 57. Ne8
{[%clk 0:00:12.3]} 57... Kxh4 {[%clk 0:00:36.7]} 58. Nf6 {[%clk 0:00:12.8]}
58... Rf3+ {[%clk 0:00:35.3]} 59. Kg1 {[%clk 0:00:12.7]} 59... Rxf6 {[%clk
0:00:36.2]} 60. Rxd5 {[%clk 0:00:11.5]} 60... Rf5 {[%clk 0:00:36.9]} 61. Rd2
{[%clk 0:00:11.2]} 61... e4 {[%clk 0:00:36.7]} 62. Re2 {[%clk 0:00:11.2]} 62...
Re5 {[%clk 0:00:37]} 63. Kg2 {[%clk 0:00:11.1]} 63... Kg4 {[%clk 0:00:37.3]} 64.
Re3 {[%clk 0:00:11.4]} 64... h4 {[%clk 0:00:37.4]} 65. Kh2 {[%clk 0:00:11.4]}
65... f5 {[%clk 0:00:38]} 66. Re1 {[%clk 0:00:11.5]} 66... f4 {[%clk 0:00:38.6]}
67. Rg1+ {[%clk 0:00:12.1]} 67... Kf5 {[%clk 0:00:39.2]} 68. Kh3 {[%clk
0:00:11.7]} 68... g5 {[%clk 0:00:40.1]} 69. Rg4 {[%clk 0:00:10.4]} 69... e3
{[%clk 0:00:41]} 70. Rg1 {[%clk 0:00:11.1]} 70... e2 {[%clk 0:00:41.9]} 71. Re1
{[%clk 0:00:11.8]} 71... f3 {[%clk 0:00:42.2]} 72. Kh2 {[%clk 0:00:11.7]} 72...
g4 {[%clk 0:00:42.7]} 73. Rf1 {[%clk 0:00:11.8]} 73... exf1=N+ {[%clk 0:00:38]}
74. Kg1 {[%clk 0:00:11.8]} 74... Ng3 {[%clk 0:00:37.6]} 75. Kh2 {[%clk
0:00:12.1]} 75... Re2+ {[%clk 0:00:38.1]} 76. Kg1 {[%clk 0:00:12.8]} 76... Rg2#
{[%clk 0:00:38.6]} 0-1

[Event "Early-Titled-Tuesday-Blitz-June-18-2024"]
[Site "Chess.com"]
[Date "2024.06.18"]
[Round "1"]
[White "margarita_2703"]
[Black "Crazy_girl99"]
[Result "0-1"]
[WhiteElo "2232"]
[BlackElo "2600"]
[TimeControl "180+1"]
[EndTime "8:08:18 PDT"]
[Termination "Crazy_girl99 won by checkmate"]

1. e4 {[%clk 0:02:59.8]} 1... e5 {[%clk 0:02:57.6]} 2. Nf3 {[%clk 0:02:59.9]}
2... Nc6 {[%clk 0:02:57.7]} 3. Bc4 {[%clk 0:03:00.5]} 3... Bc5 {[%clk
0:02:57.5]} 4. O-O {[%clk 0:02:59.4]} 4... Nf6 {[%clk 0:02:58.1]} 5. d3 {[%clk
0:02:33]} 5... d6 {[%clk 0:02:58]} 6. c3 {[%clk 0:02:31.3]} 6... a6 {[%clk
0:02:57.9]} 7. a4 {[%clk 0:02:29.9]} 7... Ba7 {[%clk 0:02:57.6]} 8. Bb3 {[%clk
0:02:29.6]} 8... h6 {[%clk 0:02:56.6]} 9. Nbd2 {[%clk 0:02:24.1]} 9... O-O
{[%clk 0:02:56.5]} 10. Re1 {[%clk 0:02:23.5]} 10... Re8 {[%clk 0:02:55.3]} 11.
h3 {[%clk 0:02:23.3]} 11... Be6 {[%clk 0:02:54]} 12. Bc2 {[%clk 0:02:23.4]}
12... d5 {[%clk 0:02:53.5]} 13. Qe2 {[%clk 0:02:21.4]} 13... d4 {[%clk
0:02:50.6]} 14. Nf1 {[%clk 0:02:20.9]} 14... Qd7 {[%clk 0:02:47.4]} 15. Ng3
{[%clk 0:02:20.4]} 15... Rad8 {[%clk 0:02:47.3]} 16. Nh4 {[%clk 0:02:20.2]}
16... Ne7 {[%clk 0:02:35.9]} 17. Nh5 {[%clk 0:02:13.3]} 17... Nxh5 {[%clk
0:02:24.9]} 18. Qxh5 {[%clk 0:02:14.2]} 18... dxc3 {[%clk 0:02:18.5]} 19. bxc3
{[%clk 0:02:12.6]} 19... Kh7 {[%clk 0:01:53.4]} 20. Rb1 {[%clk 0:01:59.7]} 20...
b5 {[%clk 0:01:44.1]} 21. axb5 {[%clk 0:01:59.3]} 21... axb5 {[%clk 0:01:44.1]}
22. Be3 {[%clk 0:01:59.9]} 22... Bxe3 {[%clk 0:01:42.7]} 23. Rxe3 {[%clk
0:02:00.8]} 23... Ng6 {[%clk 0:01:42.3]} 24. Nxg6 {[%clk 0:01:53.7]} 24... fxg6
{[%clk 0:01:43.2]} 25. Qe2 {[%clk 0:01:53]} 25... c6 {[%clk 0:01:42]} 26. Rg3
{[%clk 0:01:51.3]} 26... Rf8 {[%clk 0:01:40.4]} 27. Bb3 {[%clk 0:01:44.3]} 27...
Bxb3 {[%clk 0:01:37.6]} 28. Rxb3 {[%clk 0:01:45.2]} 28... Ra8 {[%clk 0:01:33.9]}
29. Rb1 {[%clk 0:01:42.3]} 29... Ra3 {[%clk 0:01:31.5]} 30. Rc1 {[%clk
0:01:34.1]} 30... Qf7 {[%clk 0:01:29]} 31. Re3 {[%clk 0:01:30.4]} 31... Qb3
{[%clk 0:01:22.6]} 32. d4 {[%clk 0:01:29.6]} 32... Ra2 {[%clk 0:01:20.4]} 33.
Qg4 {[%clk 0:00:47.9]} 33... Qb2 {[%clk 0:01:17.6]} 34. Rce1 {[%clk 0:00:37.3]}
34... Qxf2+ {[%clk 0:01:16.5]} 35. Kh1 {[%clk 0:00:36.9]} 35... exd4 {[%clk
0:00:51.8]} 36. cxd4 {[%clk 0:00:36.8]} 36... b4 {[%clk 0:00:51]} 37. e5 {[%clk
0:00:35.5]} 37... b3 {[%clk 0:00:51]} 38. e6 {[%clk 0:00:35.7]} 38... b2 {[%clk
0:00:19.2]} 39. e7 {[%clk 0:00:35.3]} 39... Re8 {[%clk 0:00:11.6]} 40. Qd7
{[%clk 0:00:31.5]} 40... Qxe3 {[%clk 0:00:08]} 41. Rxe3 {[%clk 0:00:24.7]} 41...
b1=Q+ {[%clk 0:00:08.3]} 42. Kh2 {[%clk 0:00:25.6]} 42... Raa8 {[%clk
0:00:07.4]} 43. Rg3 {[%clk 0:00:18.3]} 43... Qf5 {[%clk 0:00:07.1]} 44. Qd6
{[%clk 0:00:17.6]} 44... Qf6 {[%clk 0:00:06.6]} 45. Qc7 {[%clk 0:00:17.4]} 45...
Rxe7 {[%clk 0:00:04.8]} 46. Qb6 {[%clk 0:00:17.7]} 46... Rae8 {[%clk 0:00:04.6]}
47. Qc5 {[%clk 0:00:17.3]} 47... Re3 {[%clk 0:00:03.6]} 48. Rg4 {[%clk
0:00:17.5]} 48... R8e4 {[%clk 0:00:03.1]} 49. Rxe4 {[%clk 0:00:09.2]} 49... Rxe4
{[%clk 0:00:04]} 50. d5 {[%clk 0:00:10.1]} 50... Qe5+ {[%clk 0:00:04.1]} 51. Kg1
{[%clk 0:00:09.5]} 51... Re1+ {[%clk 0:00:03.6]} 52. Kf2 {[%clk 0:00:10.4]}
52... Qe2+ {[%clk 0:00:03.9]} 53. Kg3 {[%clk 0:00:10.1]} 53... Qe3+ {[%clk
0:00:04.5]} 54. Qxe3 {[%clk 0:00:10.3]} 54... Rxe3+ {[%clk 0:00:05.2]} 55. Kf4
{[%clk 0:00:11.2]} 55... Rd3 {[%clk 0:00:05.2]} 56. dxc6 {[%clk 0:00:11.4]}
56... Rc3 {[%clk 0:00:05.9]} 57. g4 {[%clk 0:00:11.5]} 57... Rxc6 {[%clk
0:00:06.4]} 58. h4 {[%clk 0:00:12.4]} 58... Rc4+ {[%clk 0:00:06.5]} 59. Kg3
{[%clk 0:00:13.3]} 59... g5 {[%clk 0:00:07.2]} 60. hxg5 {[%clk 0:00:13.4]} 60...
hxg5 {[%clk 0:00:08.1]} 61. Kf3 {[%clk 0:00:13.9]} 61... Kg6 {[%clk 0:00:09]}
62. Kg3 {[%clk 0:00:14.8]} 62... Rf4 {[%clk 0:00:07.5]} 63. Kh3 {[%clk
0:00:14.8]} 63... Kf6 {[%clk 0:00:08.2]} 64. Kg2 {[%clk 0:00:15.7]} 64... Rxg4+
{[%clk 0:00:07.8]} 65. Kh1 {[%clk 0:00:16.6]} 65... Rh4+ {[%clk 0:00:07.8]} 66.
Kg2 {[%clk 0:00:17]} 66... g4 {[%clk 0:00:08.4]} 67. Kg1 {[%clk 0:00:17.9]}
67... Kg5 {[%clk 0:00:08.7]} 68. Kg2 {[%clk 0:00:18.7]} 68... Kf4 {[%clk
0:00:09.3]} 69. Kf2 {[%clk 0:00:18.8]} 69... Rh2+ {[%clk 0:00:09.1]} 70. Kg1
{[%clk 0:00:19]} 70... Ra2 {[%clk 0:00:10]} 71. Kh1 {[%clk 0:00:19.3]} 71... Kg3
{[%clk 0:00:09.9]} 72. Kg1 {[%clk 0:00:19.3]} 72... Ra1# {[%clk 0:00:10.8]} 0-1

[Event "Early-Titled-Tuesday-Blitz-June-18-2024"]
[Site "Chess.com"]
[Date "2024.06.18"]
[Round "1"]
[White "crazy_but_lazy"]
[Black "LoonsDeKoeben"]
[Result "1-0"]
[WhiteElo "2672"]
[BlackElo "2364"]
[TimeControl "180+1"]
[EndTime "8:08:19 PDT"]
[Termination "crazy_but_lazy won by checkmate"]

1. Nf3 {[%clk 0:02:55.4]} 1... c5 {[%clk 0:02:57.6]} 2. e3 {[%clk 0:02:55.3]}
2... Nf6 {[%clk 0:02:56.4]} 3. c4 {[%clk 0:02:53.9]} 3... e6 {[%clk 0:02:55.4]}
4. b3 {[%clk 0:02:53.5]} 4... b6 {[%clk 0:02:55.2]} 5. Nc3 {[%clk 0:02:53.8]}
5... Nc6 {[%clk 0:02:54.9]} 6. Bb2 {[%clk 0:02:54.1]} 6... Bb7 {[%clk
0:02:55.1]} 7. g3 {[%clk 0:02:51.4]} 7... Ne5 {[%clk 0:02:47.6]} 8. Be2 {[%clk
0:02:35.4]} 8... Bxf3 {[%clk 0:01:59.4]} 9. Bxf3 {[%clk 0:02:36.3]} 9... Nd3+
{[%clk 0:02:00.2]} 10. Ke2 {[%clk 0:02:36.5]} 10... Nxb2 {[%clk 0:02:01.1]} 11.
Qc2 {[%clk 0:02:36.9]} 11... d5 {[%clk 0:02:00]} 12. Qxb2 {[%clk 0:02:29]} 12...
Be7 {[%clk 0:01:57.4]} 13. d3 {[%clk 0:02:13.8]} 13... Rc8 {[%clk 0:01:50.6]}
14. Rad1 {[%clk 0:02:13.4]} 14... O-O {[%clk 0:01:44.2]} 15. h4 {[%clk
0:01:56.4]} 15... d4 {[%clk 0:01:26.1]} 16. Ne4 {[%clk 0:01:56.1]} 16... Nxe4
{[%clk 0:01:25.7]} 17. Bxe4 {[%clk 0:01:56.4]} 17... f5 {[%clk 0:01:24.9]} 18.
Bf3 {[%clk 0:01:56.1]} 18... e5 {[%clk 0:01:25.1]} 19. Bd5+ {[%clk 0:01:56.1]}
19... Kh8 {[%clk 0:01:25.2]} 20. Rdg1 {[%clk 0:01:50.3]} 20... Qd6 {[%clk
0:01:22.6]} 21. g4 {[%clk 0:01:44.8]} 21... fxg4 {[%clk 0:01:03.9]} 22. Rxg4
{[%clk 0:01:45.7]} 22... Qf6 {[%clk 0:01:04.3]} 23. Ke1 {[%clk 0:01:22.1]} 23...
Qf5 {[%clk 0:00:53.9]} 24. Qe2 {[%clk 0:01:21.2]} 24... dxe3 {[%clk 0:00:42.5]}
25. fxe3 {[%clk 0:01:19.9]} 25... h5 {[%clk 0:00:42.9]} 26. Rg2 {[%clk
0:01:16.3]} 26... e4 {[%clk 0:00:37.9]} 27. Bxe4 {[%clk 0:01:15.4]} 27... Qe5
{[%clk 0:00:37.9]} 28. Qb2 {[%clk 0:01:15.9]} 28... Qxb2 {[%clk 0:00:37.5]} 29.
Rxb2 {[%clk 0:01:16.8]} 29... Bf6 {[%clk 0:00:37]} 30. Rg2 {[%clk 0:01:15.5]}
30... Rfe8 {[%clk 0:00:36.5]} 31. Ke2 {[%clk 0:01:15.7]} 31... Re5 {[%clk
0:00:35.4]} 32. Rf2 {[%clk 0:01:08.1]} 32... Kg8 {[%clk 0:00:33]} 33. a4 {[%clk
0:01:08]} 33... a5 {[%clk 0:00:31.1]} 34. Rf3 {[%clk 0:01:08.1]} 34... Kf7
{[%clk 0:00:31.2]} 35. Rg1 {[%clk 0:01:05.2]} 35... Rd8 {[%clk 0:00:30.4]} 36.
Bd5+ {[%clk 0:00:59.7]} 36... Ke7 {[%clk 0:00:28.6]} 37. Rg6 {[%clk 0:01:00.2]}
37... Kd6 {[%clk 0:00:20.5]} 38. Kd2 {[%clk 0:00:43.3]} 38... Rde8 {[%clk
0:00:20.6]} 39. Rfxf6+ {[%clk 0:00:31.7]} 39... gxf6 {[%clk 0:00:20.3]} 40.
Rxf6+ {[%clk 0:00:32.6]} 40... Kc7 {[%clk 0:00:20.7]} 41. Rc6+ {[%clk
0:00:32.9]} 41... Kd7 {[%clk 0:00:19.9]} 42. e4 {[%clk 0:00:31.3]} 42... Rb8
{[%clk 0:00:19.4]} 43. Rh6 {[%clk 0:00:29.5]} 43... Kc7 {[%clk 0:00:19.6]} 44.
Ke3 {[%clk 0:00:26.3]} 44... Rg8 {[%clk 0:00:15.8]} 45. Rc6+ {[%clk 0:00:26.6]}
45... Kd7 {[%clk 0:00:09.8]} 46. Rxb6 {[%clk 0:00:27]} 46... Rg4 {[%clk
0:00:08.8]} 47. Rc6 {[%clk 0:00:20.6]} 47... Rxh4 {[%clk 0:00:07]} 48. Rxc5
{[%clk 0:00:21.2]} 48... Rh3+ {[%clk 0:00:07.3]} 49. Kd4 {[%clk 0:00:21.5]}
49... Re8 {[%clk 0:00:08.2]} 50. Bc6+ {[%clk 0:00:21.4]} 50... Ke7 {[%clk
0:00:08.6]} 51. Bxe8 {[%clk 0:00:21.9]} 51... Kxe8 {[%clk 0:00:09.5]} 52. Rxa5
{[%clk 0:00:22.2]} 52... h4 {[%clk 0:00:09.6]} 53. Rh5 {[%clk 0:00:22.7]} 53...
Rh1 {[%clk 0:00:10.1]} 54. a5 {[%clk 0:00:23]} 54... Kf7 {[%clk 0:00:10.9]} 55.
b4 {[%clk 0:00:23.4]} 55... Kg6 {[%clk 0:00:11.8]} 56. Rh8 {[%clk 0:00:23]}
56... Kg7 {[%clk 0:00:12.4]} 57. Rxh4 {[%clk 0:00:22]} 57... Rxh4 {[%clk
0:00:13.3]} 58. a6 {[%clk 0:00:22.6]} 58... Rh6 {[%clk 0:00:11.7]} 59. b5 {[%clk
0:00:21.3]} 59... Kf7 {[%clk 0:00:12.3]} 60. a7 {[%clk 0:00:21.8]} 60... Rh8
{[%clk 0:00:12.4]} 61. b6 {[%clk 0:00:22.3]} 61... Ke7 {[%clk 0:00:11.5]} 62. b7
{[%clk 0:00:22.5]} 62... Kd7 {[%clk 0:00:12.4]} 63. a8=Q {[%clk 0:00:22.6]}
63... Rd8 {[%clk 0:00:06.7]} 64. b8=Q {[%clk 0:00:22.4]} 64... Ke6+ {[%clk
0:00:02.3]} 65. Qxd8 {[%clk 0:00:21]} 65... Kf7 {[%clk 0:00:03.2]} 66. Qdd5+
{[%clk 0:00:21.3]} 66... Ke7 {[%clk 0:00:03.5]} 67. Qad8# {[%clk 0:00:21.4]} 1-0

[Event "Early-Titled-Tuesday-Blitz-June-18-2024"]
[Site "Chess.com"]
[Date "2024.06.18"]
[Round "1"]
[White "vladislavkovalev"]
[Black "Manukyan_Artak"]
[Result "1/2-1/2"]
[WhiteElo "2837"]
[BlackElo "2491"]
[TimeControl "180+1"]
[EndTime "8:08:22 PDT"]
[Termination "Game drawn - insufficient material"]

1. e4 {[%clk 0:03:00.9]} 1... c6 {[%clk 0:02:59.5]} 2. Nf3 {[%clk 0:03:00.8]}
2... d5 {[%clk 0:02:59.9]} 3. d3 {[%clk 0:03:01.1]} 3... dxe4 {[%clk 0:02:59.4]}
4. dxe4 {[%clk 0:03:01.8]} 4... Qxd1+ {[%clk 0:02:59.8]} 5. Kxd1 {[%clk
0:03:02.6]} 5... Bg4 {[%clk 0:02:58.1]} 6. Be2 {[%clk 0:03:02.9]} 6... Nd7
{[%clk 0:02:57.6]} 7. Ne1 {[%clk 0:03:01.6]} 7... Bxe2+ {[%clk 0:02:54.6]} 8.
Kxe2 {[%clk 0:03:02.5]} 8... Nc5 {[%clk 0:02:53.4]} 9. f3 {[%clk 0:03:01.9]}
9... O-O-O {[%clk 0:02:51.4]} 10. Be3 {[%clk 0:03:02]} 10... e5 {[%clk 0:02:44]}
11. Nd2 {[%clk 0:03:02.5]} 11... f6 {[%clk 0:02:40]} 12. a4 {[%clk 0:03:00.1]}
12... a6 {[%clk 0:02:37.3]} 13. a5 {[%clk 0:02:56.5]} 13... h5 {[%clk
0:02:28.3]} 14. Nc4 {[%clk 0:02:56]} 14... Nh6 {[%clk 0:02:26.7]} 15. c3 {[%clk
0:02:42.9]} 15... Nf7 {[%clk 0:02:25]} 16. b4 {[%clk 0:02:41.5]} 16... Ne6
{[%clk 0:02:21]} 17. Nd3 {[%clk 0:02:42]} 17... Nd6 {[%clk 0:02:16.8]} 18. Nb6+
{[%clk 0:02:28.3]} 18... Kb8 {[%clk 0:02:13.1]} 19. Rhd1 {[%clk 0:02:29.2]}
19... Nc8 {[%clk 0:02:11.1]} 20. Rd2 {[%clk 0:01:59.6]} 20... Be7 {[%clk
0:02:02.1]} 21. Rad1 {[%clk 0:01:55.6]} 21... g5 {[%clk 0:01:58.1]} 22. Nb2
{[%clk 0:01:30.3]} 22... Rxd2+ {[%clk 0:01:56.1]} 23. Rxd2 {[%clk 0:01:31.2]}
23... Rd8 {[%clk 0:01:55.7]} 24. Rxd8 {[%clk 0:01:30.2]} 24... Bxd8 {[%clk
0:01:56.6]} 25. N2c4 {[%clk 0:01:21.5]} 25... Nxb6 {[%clk 0:01:55.8]} 26. axb6
{[%clk 0:01:20.2]} 26... Be7 {[%clk 0:01:53.3]} 27. g3 {[%clk 0:01:19.1]} 27...
c5 {[%clk 0:01:46.2]} 28. bxc5 {[%clk 0:00:55.8]} 28... Bxc5 {[%clk 0:01:47.1]}
29. Kd3 {[%clk 0:00:56.2]} 29... Kc8 {[%clk 0:01:39.9]} 30. Na5 {[%clk
0:00:49.5]} 30... Bxe3 {[%clk 0:01:35.5]} 31. Kxe3 {[%clk 0:00:50.4]} 31... Nc5
{[%clk 0:01:34.2]} 32. Kd2 {[%clk 0:00:34.5]} 32... g4 {[%clk 0:01:22.8]} 33.
Ke3 {[%clk 0:00:33.5]} 33... Kd7 {[%clk 0:01:15.6]} 34. Kf2 {[%clk 0:00:30.2]}
34... Ke6 {[%clk 0:01:10.8]} 35. Kg2 {[%clk 0:00:22.6]} 35... Kd6 {[%clk
0:00:58.8]} 36. h3 {[%clk 0:00:21.4]} 36... gxf3+ {[%clk 0:00:57.2]} 37. Kxf3
{[%clk 0:00:22.3]} 37... Ke7 {[%clk 0:00:53.7]} 38. h4 {[%clk 0:00:18.8]} 38...
Nd7 {[%clk 0:00:53]} 39. Nc4 {[%clk 0:00:12.6]} 39... Nc5 {[%clk 0:00:50.3]} 40.
Na5 {[%clk 0:00:12.9]} 40... Na4 {[%clk 0:00:49.8]} 41. g4 {[%clk 0:00:10.4]}
41... hxg4+ {[%clk 0:00:48.4]} 42. Kxg4 {[%clk 0:00:11.3]} 42... Nxb6 {[%clk
0:00:46.5]} 43. Nxb7 {[%clk 0:00:09.1]} 43... Nc4 {[%clk 0:00:44.4]} 44. h5
{[%clk 0:00:09.3]} 44... Kf7 {[%clk 0:00:44.6]} 45. Nc5 {[%clk 0:00:03.6]} 45...
a5 {[%clk 0:00:43.8]} 46. Kf3 {[%clk 0:00:02.7]} 46... Kg7 {[%clk 0:00:39.3]}
47. Ke2 {[%clk 0:00:03.1]} 47... Kh6 {[%clk 0:00:38.9]} 48. Kd3 {[%clk
0:00:03.6]} 48... Nb6 {[%clk 0:00:35]} 49. c4 {[%clk 0:00:01.9]} 49... Kxh5
{[%clk 0:00:34.7]} 50. Ne6 {[%clk 0:00:02.3]} 50... Kg4 {[%clk 0:00:31.8]} 51.
c5 {[%clk 0:00:02.9]} 51... Nc8 {[%clk 0:00:32]} 52. c6 {[%clk 0:00:03.1]} 52...
Kf3 {[%clk 0:00:30.3]} 53. c7 {[%clk 0:00:02.3]} 53... a4 {[%clk 0:00:28.8]} 54.
Nc5 {[%clk 0:00:02.1]} 54... a3 {[%clk 0:00:29.1]} 55. Kc3 {[%clk 0:00:02.8]}
55... Ke3 {[%clk 0:00:29.2]} 56. Kb3 {[%clk 0:00:03]} 56... Kd4 {[%clk
0:00:29.6]} 57. Nd7 {[%clk 0:00:02.3]} 57... Kxe4 {[%clk 0:00:28.4]} 58. Nxf6+
{[%clk 0:00:02.7]} 58... Kf5 {[%clk 0:00:26.5]} 59. Nd5 {[%clk 0:00:02.3]} 59...
Ke6 {[%clk 0:00:26.5]} 60. Ne3 {[%clk 0:00:01.9]} 60... Kd6 {[%clk 0:00:26.2]}
61. Nc4+ {[%clk 0:00:01.4]} 61... Kxc7 {[%clk 0:00:26.2]} 62. Nxe5 {[%clk
0:00:02.2]} 62... Nd6 {[%clk 0:00:26.7]} 63. Ka2 {[%clk 0:00:03.1]} 63... Kb6
{[%clk 0:00:25.9]} 64. Kxa3 {[%clk 0:00:02.7]} 1/2-1/2